bitfinex-derivatives/quotes_ETHF0:USTF0_20251107
["timestamp","ask_amount","ask_price","bid_price","bid_amount"]
[1762538092359,0.47995,3377.5,3376.6,0.48008]
[1762538092552,0.00210518,3377.6,3376.7,0.48006]
[1762538092553,0.48003,3377.0,3376.7,0.48006]
[1762538092752,0.48003,3377.0,3376.1,0.15464767]
[1762538092958,0.48007,3376.7,3376.1,0.15464767]
[1762538093157,0.48005,3376.9,3376.7,0.48006]
[1762538093365,0.47997,3377.4,3376.1,0.15464767]
[1762538093564,0.00210518,3377.6,3376.9,0.48003]
[1762538093760,0.48001,3377.2,3377.0,0.48002]
[1762538093966,0.48001,3377.2,3376.8,0.1502]
[1762538093967,0.48003,3377.0,3376.8,0.1502]
[1762538094165,0.48003,3377.0,3376.8,0.63025]
[1762538094472,0.48003,3377.0,3376.8,0.1502]
[1762538094669,0.0482,3377.5,3376.5,0.4801]
[1762538094864,0.48012,3376.4,3376.2,0.48014]
[1762538095268,0.48014,3376.2,3376.1,0.15464767]
[1762538095468,0.48014,3376.2,3376.1,0.00444767]
[1762538095870,0.0482,3377.5,3376.1,0.15464767]
[1762538096066,0.48008,3376.7,3376.5,0.4801]
[1762538096371,0.48008,3376.6,3376.1,0.15464767]
[1762538096574,0.00210518,3377.6,3376.8,0.1409]
[1762538096774,0.00210518,3377.6,3376.9,0.48004]
[1762538097166,0.48002,3377.0,3376.8,0.62095]
[1762538097367,0.48002,3377.0,3376.8,0.1409]
[1762538097864,0.00210518,3377.6,3376.1,0.15464767]
[1762538097865,0.48005,3376.9,3376.1,0.15464767]
[1762538098067,0.48005,3376.9,3376.8,0.1409]
[1762538098573,0.48001,3377.2,3376.8,0.1409]
[1762538098775,0.00210518,3377.6,3376.8,0.1409]
[1762538099071,0.00210518,3377.6,3377.2,0.47999]
[1762538099374,0.00210518,3377.6,3377.2,0.00304957]
[1762538099573,0.47998,3377.3,3377.2,0.00304957]
[1762538101171,0.00210518,3377.6,3377.2,0.00304957]
[1762538101367,0.00210518,3377.6,3377.4,0.47996]
[1762538101569,0.47996,3377.5,3377.3,0.47997]
[1762538101767,0.47998,3377.3,3377.2,0.00304957]
[1762538102076,0.47997,3377.5,3377.2,0.00304957]
[1762538102376,0.00210518,3377.6,3377.5,0.87235]
[1762538102572,0.47987,3378.1,3378.0,0.47988]
[1762538102775,0.47991,3377.8,3377.7,0.00444063]
[1762538102979,0.71661,3377.8,3377.7,0.00444063]
[1762538103466,10.675,3379.2,3377.7,0.00444063]
[1762538103665,10.675,3379.2,3377.7,0.48437063]
[1762538103666,0.47991,3377.8,3377.7,0.48437063]
[1762538103860,0.47987,3378.2,3378.1,0.47986]
[1762538104271,0.47989,3378.1,3378.0,0.47988]
[1762538104663,10.67792494,3379.2,3377.7,0.00444063]
[1762538105071,10.67792494,3379.2,3378.4,0.47982]
[1762538105272,0.47978,3378.9,3378.2,0.1409]
[1762538105573,0.47978,3378.9,3378.8,0.47977]
[1762538106264,0.00292494,3379.2,3378.2,0.3924]
[1762538106469,0.00292494,3379.2,3378.2,0.1409]
[1762538106771,0.00292494,3379.2,3379.1,0.73123]
[1762538106982,0.1077,3381.0,3379.6,0.1409]
[1762538107172,0.47958,3380.2,3380.0,0.00444063]
[1762538107372,0.47957,3380.2,3380.0,0.00444063]
[1762538107572,0.2367,3380.1,3380.0,0.00444063]
[1762538107971,0.23985518,3380.1,3380.0,0.00760769]
[1762538108174,0.47972,3379.2,3378.9,0.1409]
[1762538108472,8.00315518,3380.1,3378.9,0.1409]
[1762538108473,0.47973,3379.1,3378.9,0.1409]
[1762538109172,0.00315518,3380.1,3378.2,0.1409]
[1762538109173,0.00441715,3379.3,3378.6,0.47979]
[1762538109376,0.00441715,3379.3,3378.6,0.00668389]
[1762538109676,0.47975,3379.0,3378.9,0.1409]
[1762538109877,0.47972,3379.2,3378.9,0.1409]
[1762538110071,0.47973,3379.1,3378.9,0.1409]
[1762538110377,0.00441715,3379.3,3379.0,0.47974]
[1762538110574,0.47973,3379.1,3378.9,0.1409]
[1762538110779,0.47977,3378.8,3378.6,0.48647389]
[1762538110975,0.00441715,3379.3,3379.2,0.2515]
[1762538111272,0.00441715,3379.3,3379.1,0.47972]
[1762538111870,0.47973,3379.1,3378.9,0.1409]
[1762538112072,0.47979,3378.7,3378.6,0.00668389]
[1762538112471,0.00441715,3379.3,3378.9,0.1409]
[1762538112673,0.00441715,3379.3,3379.2,0.2515]
[1762538113682,0.47975,3379.1,3378.9,0.62065]
[1762538113882,0.00441715,3379.3,3378.9,0.1409]
[1762538114172,0.00441715,3379.3,3379.2,0.2515]
[1762538114374,0.00441715,3379.3,3379.2,0.73121]
[1762538115479,0.00441715,3379.3,3379.2,0.87211]
[1762538115871,0.00315518,3380.1,3379.9,0.47961]
[1762538116077,0.00315518,3380.1,3379.2,0.3924]
[1762538116078,0.00315518,3380.1,3380.0,0.73111]
[1762538116976,0.24425518,3380.1,3379.2,0.1409]
[1762538117171,0.47965,3379.7,3379.4,0.47968]
[1762538117483,0.00315518,3380.1,3379.2,0.1409]
[1762538117780,0.47969,3379.4,3379.2,0.1409]
[1762538118279,0.10295732,3380.0,3379.2,0.1409]
[1762538118280,0.10295732,3380.0,3379.3,0.2515]
[1762538118478,0.47968,3379.5,3379.3,0.2515]
[1762538118678,0.4797,3379.3,3379.2,0.1409]
[1762538119371,0.10295732,3380.0,3379.3,0.4797]
[1762538119372,0.47968,3379.5,3379.3,0.4797]
[1762538119580,0.47967,3379.6,3379.5,0.47967]
[1762538119782,0.47965,3379.7,3379.5,0.47967]
[1762538121285,0.10295732,3380.0,3379.3,0.2515]
[1762538121286,0.47969,3379.4,3379.3,0.2515]
[1762538121481,0.47969,3379.4,3379.2,0.1409]
[1762538121680,0.47974,3379.0,3378.9,0.1409]
[1762538121980,0.10295732,3380.0,3378.6,0.14758389]
[1762538122181,0.00315518,3380.1,3379.3,0.4797]
[1762538122482,0.47969,3379.4,3379.3,0.4797]
[1762538122684,0.47969,3379.4,3379.2,0.1409]
[1762538122685,0.0483,3379.8,3378.6,0.14758389]
[1762538123071,0.4797,3379.4,3379.2,0.47971]
[1762538123278,0.00315518,3380.1,3379.2,0.47971]
[1762538123279,0.10295732,3379.9,3379.2,0.62061]
[1762538123471,0.47977,3378.8,3378.7,0.2515]
[1762538123674,0.10295732,3379.7,3378.6,0.14758389]
[1762538123874,0.00315518,3380.1,3378.6,0.14758389]
[1762538123875,0.10295732,3380.0,3378.9,0.47976]
[1762538124078,0.10295732,3379.9,3378.6,0.62737389]
[1762538124278,0.47979,3378.7,3378.6,0.39908389]
[1762538124487,0.00315518,3380.1,3378.8,0.47977]
[1762538124488,0.47977,3378.9,3378.8,0.47977]
[1762538124674,0.10295732,3379.6,3378.6,0.14758389]
[1762538124879,0.00315518,3380.1,3379.3,0.47969]
[1762538124880,0.47969,3379.4,3379.3,0.47969]
[1762538125074,0.00315518,3380.1,3379.5,0.47967]
[1762538125075,0.10295732,3379.9,3379.5,0.47967]
[1762538125286,0.10295732,3380.0,3379.2,0.1409]
[1762538125584,0.47973,3379.1,3379.0,0.47974]
[1762538125778,0.00315518,3380.1,3378.6,0.14758389]
[1762538125779,0.10295732,3379.8,3378.6,0.14758389]
[1762538125984,0.47971,3379.3,3379.2,0.1409]
[1762538126286,0.0478,3379.8,3378.9,0.47975]
[1762538126483,0.47974,3379.1,3379.0,0.47974]
[1762538127087,0.47972,3379.2,3379.1,0.47973]
[1762538127386,0.47971,3379.4,3379.3,0.2453]
[1762538127887,0.47971,3379.4,3379.2,0.1387]
[1762538127888,0.00315518,3380.1,3379.6,0.47966]
[1762538128074,0.00315518,3380.1,3379.2,0.1387]
[1762538128075,0.00315518,3380.1,3379.7,0.47964]
[1762538128379,0.00315518,3380.1,3379.2,0.1387]
[1762538128380,0.10355829,3380.0,3379.2,0.1387]
[1762538128581,0.00315518,3380.1,3380.0,0.72491]
[1762538129479,0.00315518,3380.1,3380.0,0.2453]
[1762538129878,0.00315518,3380.1,3380.0,0.72491]
[1762538130080,0.48274518,3380.1,3380.0,0.72491]
[1762538130586,0.00315518,3380.1,3380.0,0.72491]
[1762538132587,0.48274518,3380.1,3380.0,0.2453]
[1762538132791,0.58651113,3380.1,3380.0,0.2453]
[1762538132982,0.10692113,3380.1,3380.0,0.72491]
[1762538133185,0.58651113,3380.1,3380.0,0.72491]
[1762538133489,0.58561563,3380.1,3380.0,0.72491]
[1762538133685,0.10602563,3380.1,3380.0,0.72491]
[1762538133890,0.00315518,3380.1,3380.0,0.72491]
[1762538134488,0.58241045,3380.5,3380.4,0.86355]
[1762538134688,0.10287045,3380.5,3380.4,0.86355]
[1762538134885,0.47951,3380.7,3380.6,0.72482]
[1762538135085,0.47958,3380.3,3380.1,0.00444063]
[1762538135292,0.47958,3380.3,3380.2,0.47956]
[1762538135490,0.48170222,3380.3,3380.2,0.47956]
[1762538135986,0.10503803,3380.3,3380.2,0.47956]
[1762538136192,0.00212222,3380.3,3380.2,0.72486]
[1762538136490,0.47951,3380.7,3380.6,0.2453]
[1762538136694,0.58242581,3380.7,3380.6,0.72482]
[1762538137188,0.47952,3380.6,3380.5,0.47953]
[1762538137393,0.47954,3380.5,3380.4,0.1387]
[1762538137598,0.58245267,3380.5,3380.4,0.1387]
[1762538138191,0.10291267,3380.5,3380.4,0.86355]
[1762538138493,0.00261647,3380.6,3380.5,0.72484]
[1762538139387,0.00261647,3380.6,3380.4,0.1387]
[1762538139388,1.05979786,3381.9,3381.0,0.384]
[1762538139584,0.10288437,3381.8,3381.7,0.72466]
[1762538139782,0.10288437,3381.8,3381.6,0.1387]
[1762538139783,0.47929,3382.3,3382.2,0.1387]
[1762538140183,0.47929,3382.3,3382.0,0.47932]
[1762538140184,0.00272169,3382.3,3381.9,0.00444063]
[1762538140389,1.10759786,3384.0,3382.2,0.1423041]
[1762538140588,1.05979786,3383.8,3382.2,0.6215941]
[1762538140793,0.47927,3382.4,3382.2,0.0036041]
[1762538141394,0.48233463,3382.4,3382.2,0.0036041]
[1762538142183,0.2374,3382.3,3382.2,0.0036041]
[1762538142384,0.48233463,3382.4,3382.2,0.0036041]
[1762538142791,0.2374,3382.3,3382.2,0.0036041]
[1762538143390,0.2374,3382.3,3381.9,0.00444063]
[1762538143391,0.47932,3382.0,3381.9,0.00444063]
[1762538144497,0.71672,3382.0,3381.9,0.00768121]
[1762538145696,0.00306463,3382.4,3382.2,0.47928]
[1762538146000,0.00306463,3382.4,3382.2,0.47929]
[1762538146195,0.47928,3382.3,3381.9,0.48701121]
[1762538146396,0.47931,3382.1,3381.9,0.00768121]
[1762538146698,0.00306463,3382.4,3381.9,0.00768121]
[1762538146699,0.48233463,3382.4,3381.9,0.00768121]
[1762538146998,0.00306463,3382.4,3382.3,0.72878]
[1762538147599,0.00306463,3382.4,3382.3,0.2495]
[1762538147794,0.48233463,3382.4,3382.3,0.47928]
[1762538147989,0.47928,3382.3,3382.2,0.47929]
[1762538148194,0.48233463,3382.4,3381.9,0.00768121]
[1762538148390,0.00306463,3382.4,3382.3,0.72878]
[1762538148699,5.89314895,3384.2,3383.5,0.4791]
[1762538148700,4.252,3384.2,3383.5,0.4791]
[1762538148996,0.47905,3383.9,3383.6,0.47909]
[1762538149199,10.654,3385.0,3383.8,0.61816]
[1762538149599,0.47904,3384.0,3383.8,0.1391]
[1762538149798,10.6577397,3385.0,3383.4,0.00443399]
[1762538150103,0.0037397,3385.0,3384.2,0.479]
[1762538150299,0.479,3384.3,3383.8,0.1391]
[1762538150600,0.0037397,3385.0,3384.1,0.2495]
[1762538151106,0.479,3384.3,3384.2,0.47901]
[1762538151997,0.47902,3384.2,3383.8,0.1391]
[1762538152401,0.47902,3384.2,3384.1,0.2495]
[1762538153095,0.0037397,3385.0,3383.8,0.1391]
[1762538153299,0.0037397,3385.0,3384.0,0.47903]
[1762538153594,0.0037397,3385.0,3383.4,0.00443399]
[1762538153802,0.4791,3383.6,3383.4,0.00443399]
[1762538153993,0.2374,3383.5,3383.4,0.00443399]
[1762538154398,0.47925,3382.5,3381.6,2.3155698]
[1762538154603,0.47932,3382.1,3381.6,2.3155698]
[1762538154900,0.47932,3382.1,3381.1,0.48]
[1762538155404,0.46978,3382.1,3381.7,0.14353399]
[1762538155608,0.46978,3382.1,3381.7,0.62290399]
[1762538155902,0.46978,3382.1,3381.9,0.48258058]
[1762538156091,0.46978,3382.1,3381.9,0.00324058]
[1762538156299,0.00441189,3382.3,3381.9,0.00324058]
[1762538156499,0.00441189,3382.3,3382.1,0.47931]
[1762538156798,0.4793,3382.2,3382.1,0.47931]
[1762538157300,0.47932,3382.1,3381.9,0.00324058]
[1762538158006,0.4793,3382.2,3382.0,0.47932]
[1762538158202,0.00441189,3382.3,3382.2,0.7244]
[1762538158997,0.0508,3383.8,3381.9,0.00324058]
[1762538158998,1.689,3383.7,3382.3,0.47928]
[1762538159203,0.09867707,3383.6,3382.4,0.136]
[1762538159407,0.47925,3382.5,3382.4,0.61526]
[1762538159700,0.09867707,3383.7,3382.4,0.136]
[1762538160006,0.00361815,3383.7,3382.4,0.136]
[1762538160198,0.47921,3382.8,3382.7,0.00443399]
[1762538160505,0.47932,3382.0,3381.9,0.00324058]
[1762538160807,0.47931,3382.2,3382.1,0.47931]
[1762538160994,0.47925,3382.5,3382.4,0.136]
[1762538161605,0.4793,3382.2,3382.1,0.00443399]
[1762538162207,0.5891,3382.2,3382.1,0.00443399]
[1762538162708,0.4793,3382.2,3382.1,0.00443399]
[1762538163205,0.5891,3382.2,3382.1,0.00443399]
[1762538163409,8.5891,3382.2,3382.1,0.00443399]
[1762538163599,0.58473,3382.0,3381.9,4.058e-05]
[1762538163903,0.47946,3381.1,3381.0,0.1391]
[1762538164304,0.4795,3380.9,3380.8,0.47949]
[1762538164703,0.00367217,3380.9,3380.8,0.00224806]
[1762538165002,0.48316217,3380.9,3380.8,0.00224806]
[1762538165700,0.47965,3379.8,3378.8,0.75330222]
[1762538165907,0.4796,3380.2,3380.0,0.47962]
[1762538166296,0.47962,3380.0,3379.8,0.47963]
[1762538166596,0.47962,3380.0,3379.8,0.48191898]
[1762538166801,0.4796,3380.2,3380.0,0.47961]
[1762538167003,0.47953,3380.6,3380.5,0.47954]
[1762538167201,0.47955,3380.5,3380.3,0.136]
[1762538168000,0.47949,3380.8,3379.8,0.00228898]
[1762538168199,0.00367217,3380.9,3380.0,0.4796]
[1762538168508,0.47958,3380.2,3380.1,0.47958]
[1762538168700,0.00367217,3380.9,3379.8,0.00228898]
[1762538168902,0.00367217,3380.9,3380.3,0.136]
[1762538169111,0.47953,3380.5,3380.3,0.61555]
[1762538169406,0.00367217,3380.9,3379.8,0.00228898]
[1762538169603,0.47956,3380.3,3379.8,0.00228898]
[1762538169808,0.47955,3380.4,3380.3,0.61555]
[1762538170009,0.00367217,3380.9,3380.1,0.47957]
[1762538170302,0.47958,3380.1,3380.0,0.4796]
[1762538170507,0.47961,3380.0,3379.8,0.48190898]
[1762538170703,0.47961,3380.0,3379.9,0.47961]
[1762538170901,0.47954,3380.5,3380.3,0.47956]
[1762538171108,0.47955,3380.4,3380.3,0.61556]
[1762538171409,0.47959,3380.1,3379.8,0.00228898]
[1762538171608,0.47959,3380.2,3380.1,0.47958]
[1762538171805,0.00367217,3380.9,3379.8,0.00228898]
[1762538172008,0.47962,3379.9,3379.8,0.00228898]
[1762538172509,0.4796,3380.1,3380.0,0.47959]
[1762538172911,0.47962,3379.9,3379.8,0.48190898]
[1762538173106,0.4796,3380.1,3379.8,0.00228898]
[1762538173299,0.47957,3380.4,3380.3,0.136]
[1762538173610,0.0999,3379.9,3379.8,0.00228898]
[1762538174202,0.0999,3379.7,3379.6,0.00443399]
[1762538174704,0.47963,3379.8,3379.6,0.00443399]
[1762538175107,0.47963,3379.8,3379.6,0.14414341]
[1762538175306,0.0976,3379.7,3379.6,0.00814341]
[1762538177804,0.47963,3379.8,3379.6,0.00814341]
[1762538178010,0.00367217,3380.9,3379.6,0.14414341]
[1762538178209,0.00367217,3380.9,3380.4,0.47953]
[1762538178410,0.47952,3380.6,3380.4,0.47953]
[1762538178608,0.47953,3380.6,3380.3,0.61556]
[1762538178804,0.47954,3380.5,3380.3,0.61556]
[1762538180007,0.47954,3380.5,3380.3,0.136]
[1762538180314,0.47954,3380.5,3380.3,0.61556]
[1762538180810,0.47954,3380.5,3380.3,0.136]
[1762538181109,0.47964,3379.8,3379.7,0.47964]
[1762538181408,0.47962,3379.9,3379.8,0.2451]
[1762538181713,0.47965,3379.7,3379.6,0.14414341]
[1762538182307,0.47963,3379.9,3379.7,0.47964]
[1762538182514,0.00367217,3380.9,3379.6,0.14414341]
[1762538183013,0.47961,3380.0,3379.9,0.2451]
[1762538183213,0.47965,3379.8,3379.6,0.62380341]
[1762538183411,0.47965,3379.8,3379.6,0.14414341]
[1762538183605,0.00367217,3380.9,3379.6,0.14414341]
[1762538183804,0.00367217,3380.9,3380.3,0.61556]
[1762538184224,0.47955,3380.4,3380.3,0.136]
[1762538184515,0.47955,3380.4,3379.6,0.14414341]
[1762538184516,0.47959,3380.2,3380.1,0.47959]
[1762538185020,0.47956,3380.3,3380.2,0.47956]
[1762538185217,0.00367217,3380.9,3380.4,0.47954]
[1762538185420,0.47955,3380.4,3380.3,0.136]
[1762538185912,0.00367217,3380.9,3380.6,0.47951]
[1762538186219,0.47953,3380.6,3380.5,0.4215]
[1762538186417,0.47953,3380.6,3380.5,0.90103]
[1762538186607,0.47953,3380.6,3380.3,0.136]
[1762538186608,0.00367217,3380.9,3380.8,0.47949]
[1762538186923,0.00367217,3380.9,3380.8,0.90099]
[1762538189619,0.47939,3381.5,3381.4,0.4794]
[1762538189818,0.2001,3382.4,3381.0,0.2612]
[1762538189819,0.47943,3381.3,3381.0,0.2612]
[1762538190020,0.47943,3381.3,3381.2,0.47943]
[1762538190223,0.47942,3381.4,3381.3,0.47941]
[1762538190519,0.48307843,3381.4,3381.3,0.47941]
[1762538190724,0.00365843,3381.4,3381.3,0.47941]
[1762538190921,0.00365843,3381.4,3381.3,0.90091]
[1762538192324,0.00365843,3381.4,3381.0,0.26563399]
[1762538192325,0.47945,3381.1,3381.0,0.26563399]
[1762538192525,0.47944,3381.2,3381.1,0.47942]
[1762538193429,0.47945,3381.1,3381.0,0.26563399]
[1762538193619,0.88985,3381.1,3381.0,0.00443399]
[1762538193818,0.47945,3381.1,3381.0,0.00443399]
[1762538194124,0.47944,3381.2,3381.1,0.47943]
[1762538194318,0.47945,3381.1,3381.0,0.26563399]
[1762538194523,0.00365843,3381.4,3381.1,0.47943]
[1762538194524,0.47944,3381.2,3381.1,0.47943]
[1762538194728,0.48307843,3381.4,3381.3,0.47942]
[1762538195328,0.00365843,3381.4,3381.3,0.90092]
[1762538195533,12.76447851,3383.3,3382.2,0.2612]
[1762538195534,0.47928,3382.4,3382.2,0.2612]
[1762538195829,0.10029291,3383.0,3381.8,0.47935]
[1762538196031,0.10029291,3383.2,3381.6,0.74057]
[1762538196422,0.47941,3381.4,3381.3,0.47941]
[1762538196724,10.654,3383.3,3381.3,0.47941]
[1762538196725,0.00443398,3382.7,3382.2,0.2612]
[1762538197036,0.47928,3382.3,3382.2,0.4793]
[1762538197733,0.00443398,3382.7,3382.0,0.47931]
[1762538197928,0.47928,3382.3,3382.2,0.7405]
[1762538198328,0.00443398,3382.7,3381.6,0.2612]
[1762538198539,0.47936,3381.9,3381.8,0.47934]
[1762538198832,0.47937,3381.7,3381.6,0.2612]
[1762538199133,0.00443398,3382.7,3381.6,0.2612]
[1762538199530,0.00443398,3382.7,3381.8,0.47935]
[1762538200334,0.47937,3381.7,3381.6,0.2612]
[1762538200738,0.47937,3381.7,3381.6,0.74058]
[1762538201136,0.47939,3381.5,3381.4,0.4794]
[1762538201338,0.47941,3381.4,3381.3,0.00243352]
[1762538201529,0.4794,3381.5,3381.4,0.47939]
[1762538201942,0.47941,3381.4,3381.3,0.48185352]
[1762538202633,0.4794,3381.5,3381.4,0.47941]
[1762538202839,0.47938,3381.7,3381.6,0.47938]
[1762538203138,0.4794,3381.5,3381.4,0.8832]
[1762538203835,0.47938,3381.6,3381.5,0.47938]
[1762538205144,0.00443398,3382.7,3381.3,0.00243352]
[1762538205344,0.47937,3381.7,3381.6,0.6524]
[1762538205946,0.47937,3381.8,3381.7,0.47935]
[1762538206145,0.00443398,3382.7,3381.9,0.4038]
[1762538206347,0.47932,3382.1,3382.0,0.47932]
[1762538207742,0.4793,3382.2,3382.0,0.47932]
[1762538207943,0.4793,3382.2,3382.1,0.47931]
[1762538208138,0.4793,3382.2,3381.6,0.2486]
[1762538208139,0.00443398,3382.7,3382.2,0.2486]
[1762538208451,0.00443398,3382.7,3382.6,0.4038]
[1762538209342,0.00443398,3382.7,3382.2,0.2486]
[1762538209343,0.47928,3382.4,3382.2,0.2486]
[1762538209549,0.00443398,3382.7,3382.3,0.4038]
[1762538209751,0.47926,3382.5,3382.4,0.47926]
[1762538209944,0.00443398,3382.7,3382.2,0.2486]
[1762538210248,0.47925,3382.5,3382.4,0.47926]
[1762538210447,0.47925,3382.5,3382.4,0.88306]
[1762538211146,0.00443398,3382.7,3382.4,0.4038]
[1762538211350,0.47924,3382.6,3382.5,0.47925]
[1762538211547,0.00443398,3382.7,3382.6,0.4038]
[1762538211854,0.00372918,3383.1,3383.0,0.4038]
[1762538212144,0.47919,3383.0,3382.9,0.47919]
[1762538212539,0.47922,3382.8,3382.2,0.2486]
[1762538212742,0.00372918,3383.1,3382.2,0.2486]
[1762538212948,0.47924,3382.6,3382.5,0.47925]
[1762538213347,0.47927,3382.4,3382.3,0.00443399]
[1762538213546,0.00372918,3383.1,3382.3,0.40823399]
[1762538213753,0.00372918,3383.1,3382.8,0.6524]
[1762538213754,0.4792,3382.9,3382.8,0.6524]
[1762538214448,0.47918,3383.0,3382.9,0.4038]
[1762538215551,0.47918,3383.0,3382.9,0.88298]
[1762538215752,0.48290918,3383.1,3383.0,0.47918]
[1762538215952,0.00372918,3383.1,3383.0,0.47918]
[1762538216348,0.48289918,3383.1,3383.0,0.47918]
[1762538217749,0.00372918,3383.1,3383.0,0.47918]
[1762538218149,0.00372918,3383.1,3382.8,0.2486]
[1762538218150,0.4792,3382.9,3382.8,0.2486]
[1762538218454,0.47925,3382.5,3382.3,0.41023399]
[1762538219154,0.47927,3382.4,3382.3,0.00443399]
[1762538220452,0.00372918,3383.1,3382.3,0.00443399]
[1762538220453,0.47925,3382.6,3382.3,0.00443399]
[1762538220651,0.47925,3382.6,3382.5,0.47925]
[1762538221056,0.00372918,3383.1,3382.5,0.47925]
[1762538221355,0.00372918,3383.1,3383.0,0.88498]
[1762538223460,0.2046,3384.6,3383.4,0.2372]
[1762538223761,0.2038,3385.2,3384.0,1.12202]
[1762538223762,0.47904,3384.1,3384.0,1.12202]
[1762538224461,0.47902,3384.2,3384.1,0.47901]
[1762538224761,0.48281896,3384.2,3384.1,0.47901]
[1762538224960,0.00379896,3384.2,3384.1,0.88481]
[1762538227161,0.00379896,3384.2,3384.1,0.4058]
[1762538227452,0.48280896,3384.2,3384.1,0.4058]
[1762538227657,0.47903,3384.1,3384.0,0.71848996]
[1762538227859,0.00379896,3384.2,3384.1,0.47903]
[1762538228259,0.00379896,3384.2,3384.1,0.88483]
[1762538229860,0.47893,3384.8,3384.7,0.88472]
[1762538230255,0.47887,3385.3,3385.1,0.47888]
[1762538230454,0.47886,3385.3,3385.2,0.2372]
[1762538230757,0.48174004,3385.3,3385.2,0.2372]
[1762538231157,0.48175004,3385.3,3385.2,0.2372]
[1762538232266,0.00288004,3385.3,3385.2,0.643]
[1762538232864,0.09878398,3386.5,3385.8,0.71598]
[1762538233054,1.05756611,3387.2,3385.8,0.2372]
[1762538233251,0.47868,3386.6,3386.4,0.2372]
[1762538233758,0.48229112,3386.6,3386.4,0.71945727]
[1762538234067,0.00361112,3386.6,3386.5,0.4058]
[1762538234758,0.00361112,3386.6,3386.4,0.24075727]
[1762538234759,0.47869,3386.5,3386.4,0.24075727]
[1762538234958,0.47869,3386.5,3386.4,0.00355727]
[1762538235663,0.00361112,3386.6,3386.4,0.00355727]
[1762538235866,0.00361112,3386.6,3386.4,0.24075727]
[1762538236162,0.48229112,3386.6,3386.5,0.4058]
[1762538236665,0.48229112,3386.6,3386.4,0.24075727]
[1762538236666,0.47868,3386.5,3386.4,0.24075727]
[1762538237559,0.47868,3386.5,3386.4,0.00355727]
[1762538237560,0.87618,3386.5,3386.4,0.00355727]
[1762538239466,0.47868,3386.5,3386.4,0.00355727]
[1762538239965,0.00361112,3386.6,3386.4,0.00355727]
[1762538240362,0.47869,3386.5,3386.4,0.00355727]
[1762538241463,0.47869,3386.5,3386.4,0.24075727]
[1762538242059,0.00361112,3386.6,3386.4,0.24075727]
[1762538242060,0.48229112,3386.6,3386.5,0.4058]
[1762538242563,0.00361112,3386.6,3386.5,0.88449]
[1762538243965,0.48229112,3386.6,3386.5,0.4058]
[1762538244162,0.87619,3386.5,3386.4,0.00355727]
[1762538244360,0.48229112,3386.6,3386.5,0.47869]
[1762538244568,0.48229112,3386.6,3386.5,0.88449]
[1762538244760,0.00361112,3386.6,3386.5,0.88449]
[1762538245855,0.0984232,3388.6,3387.0,0.2372]
[1762538246055,10.639,3389.6,3387.9,0.47848]
[1762538246056,0.0984232,3389.1,3387.9,0.47848]
[1762538246258,0.0984232,3389.5,3388.1,0.47846]
[1762538246463,0.0984232,3389.5,3388.2,0.2122]
[1762538246464,0.47828,3389.4,3388.2,0.2122]
[1762538246665,0.47837,3388.8,3388.2,0.2122]
[1762538246864,0.00218708,3388.8,3388.2,0.2122]
[1762538247055,0.00218708,3388.8,3388.2,0.69064]
[1762538247260,0.00218708,3388.8,3388.7,0.82098]
[1762538247759,0.00218708,3388.8,3388.7,0.3426]
[1762538248069,0.48055708,3388.8,3388.2,0.2122]
[1762538248265,0.47843,3388.4,3388.2,0.2122]
[1762538248967,0.00218708,3388.8,3388.2,0.2122]
[1762538249161,0.48055708,3388.8,3388.5,0.4784]
[1762538249371,0.47838,3388.7,3388.5,0.4784]
[1762538249663,0.00218708,3388.8,3388.6,0.47838]
[1762538249864,0.00218708,3388.8,3388.7,0.3426]
[1762538251062,0.342,3391.0,3390.1,0.47818]
[1762538251270,0.342,3391.0,3390.2,0.00442693]
[1762538251468,0.47815,3390.3,3390.2,0.00442693]
[1762538252068,0.84321011,3390.3,3390.2,0.00656895]
[1762538253066,0.84321011,3390.3,3389.4,0.2122]
[1762538253067,0.47827,3389.5,3389.4,0.2122]
[1762538253468,0.47835,3389.0,3388.8,0.2122]
[1762538254272,0.47835,3389.0,3388.8,0.21443441]
[1762538254767,0.47835,3389.0,3388.8,0.00223441]
[1762538255470,0.47835,3389.0,3388.8,0.48059441]
[1762538255666,0.47835,3389.0,3388.8,0.00223441]
[1762538256172,0.00440338,3389.2,3388.8,0.21443441]
[1762538256474,0.00440338,3389.2,3389.0,0.47834]
[1762538256674,0.48271338,3389.2,3389.1,0.47832]
[1762538257071,0.00440338,3389.2,3389.1,0.82092]
[1762538258379,0.48271338,3389.2,3389.1,0.82092]
[1762538258671,0.00440338,3389.2,3389.1,0.82092]
[1762538259175,0.48271338,3389.2,3389.1,0.82092]
[1762538259370,0.00440338,3389.2,3389.1,0.82092]
[1762538262178,0.00440338,3389.2,3388.8,0.21443441]
[1762538262371,0.47833,3389.1,3389.0,0.47833]
[1762538262572,0.47835,3388.9,3388.8,1.04129441]
[1762538262770,0.47835,3388.9,3388.8,1.04130441]
[1762538263082,0.47833,3389.1,3389.0,0.47833]
[1762538263377,0.48271338,3389.2,3389.1,0.47832]
[1762538263677,0.47835,3389.0,3388.9,0.47834]
[1762538263876,0.47835,3388.9,3388.8,0.69280441]
[1762538264079,0.48272338,3389.2,3389.1,0.47832]
[1762538264578,0.47835,3389.0,3388.9,0.82684]
[1762538264780,0.47835,3389.0,3388.8,0.21443441]
[1762538264971,0.47835,3389.0,3388.9,0.47835]
[1762538265174,0.00440338,3389.2,3387.6,0.2122]
[1762538265478,0.47835,3388.9,3388.8,0.2116]
[1762538265981,0.00440338,3389.2,3388.8,0.2116]
[1762538266279,0.47835,3389.0,3388.9,0.47835]
[1762538266780,0.47835,3388.9,3388.8,0.00320036]
[1762538267483,0.47835,3388.9,3388.8,0.69317036]
[1762538268179,0.47835,3388.9,3388.8,1.04167036]
[1762538268678,0.47833,3389.1,3389.0,0.82682]
[1762538269477,0.47833,3389.1,3389.0,0.3485]
[1762538269779,0.47833,3389.1,3387.6,0.96691761]